fUST/lending_fUST_20250416
["ID","MTS","AMOUNT","RATE_DAILY","PERIOD"]
[358139973,1744764633173,-157.799996,0.00043635,120]
[358139974,1744764633183,-774.685766,0.00043635,2]
[358139975,1744764633194,-774.685766,0.00043635,2]
[358139976,1744764633204,-204.56558,0.00043635,120]
[358139977,1744764633215,-204.56558,0.00043635,120]
[358139978,1744764633224,-152537.49915814,0.00043635,2]
[358139979,1744764633238,-149981.58396827,0.00043635,2]
[358139980,1744764633248,-500.0,0.00043673,10]
[358139981,1744764633258,-500.0,0.00043673,10]
[358139982,1744764633269,-484.66707543,0.00043673,10]
[358139983,1744764633279,-500.0,0.00043673,2]
[358139984,1744764633288,-500.0,0.00043673,10]
[358139985,1744764633296,-500.0,0.00043673,10]
[358139986,1744764633306,-500.0,0.00043673,10]
[358139987,1744764633317,-500.0,0.00043673,10]
[358139988,1744764633327,-500.0,0.00043673,10]
[358139989,1744764633337,-557.06434477,0.00043673,10]
[358139990,1744764633349,-500.0,0.00043673,10]
[358139991,1744764633360,-500.0,0.00043673,10]
[358139992,1744764633370,-190.0,0.000437,120]
[358139993,1744764633381,-176.55361282,0.00043734,2]
[358139994,1744764633392,-160.0,0.00043734,120]
[358139995,1744764633402,-151.0,0.00043735,120]
[358139996,1744764633413,-151.0,0.00043735,3]
[358139997,1744764633423,-151.0,0.00043735,3]
[358139998,1744764633433,-151.0,0.00043735,3]
[358139999,1744764633443,-151.0,0.00043735,3]
[358140000,1744764633453,-286.7168989,0.00043735,3]
[358140001,1744764633463,-207.4,0.00043735,3]
[358140002,1744764633473,-215.0738,0.00043735,3]
[358140003,1744764633483,-223.0315306,0.00043735,3]
[358140004,1744764633494,-384.0946694,0.00043735,3]
[358140005,1744764633504,-6002.20242842,0.00043735,120]
[358140006,1744764633514,-150.1,0.00043743,3]
[358140007,1744764633524,-307.0,0.000438,120]
[358140008,1744764633535,-200.0,0.000438,64]
[358140009,1744764633545,-5924.68438914,0.00043815,3]
[358140010,1744764633555,-1516.21661094,0.00043815,3]
[358140011,1744764633565,-500.0,0.00043817,30]
[358140012,1744764633575,-774.685766,0.00043825,2]
[358140013,1744764633585,-774.685766,0.00043825,2]
[358140014,1744764633597,-204.56558,0.00043825,120]
[358140015,1744764633614,-204.56558,0.00043825,120]
[358140016,1744764633624,-35548.1063348,0.00043825,3]
[358140017,1744764633635,-9097.29966564,0.00043825,3]
[358140018,1744764633647,-2512.573889,0.00043825,2]
[358140019,1744764633658,-748.24,0.00043835,120]
[358140020,1744764633668,-748.24,0.00043835,120]
[358140021,1744764633679,-748.24,0.00043835,120]
[358140022,1744764633690,-748.24,0.00043835,120]
[358140023,1744764633700,-748.24,0.00043835,120]
[358140024,1744764633709,-748.24,0.00043835,120]
[358140025,1744764633718,-748.24,0.00043835,120]
[358140026,1744764633728,-748.24,0.00043835,120]
[358140027,1744764633739,-748.24,0.00043835,120]
[358140028,1744764633749,-748.24,0.00043835,120]
[358140029,1744764633759,-748.24,0.00043835,120]
[358140030,1744764633769,-748.24,0.00043835,120]
[358140031,1744764633779,-748.24,0.00043835,120]
[358140032,1744764633789,-748.24,0.00043835,120]
[358140033,1744764633799,-748.24,0.00043835,120]
[358140034,1744764633809,-748.24,0.00043835,120]
[358140035,1744764633819,-748.24,0.00043835,120]
[358140036,1744764633828,-748.24,0.00043835,120]
[358140037,1744764633838,-748.24,0.00043835,120]
[358140038,1744764633851,-748.24,0.00043835,120]
[358140039,1744764633861,-748.24,0.00043835,120]
[358140040,1744764633872,-748.24,0.00043835,120]
[358140041,1744764633882,-748.24,0.00043835,120]
[358140042,1744764633893,-748.35790117,0.00043835,120]
[358140043,1744764633903,-554.26825355,0.00043835,2]
[358140044,1744764633915,-500.0,0.00043835,2]
[358140045,1744764633925,-500.0,0.00043835,2]
[358140046,1744764633935,-500.0,0.00043835,2]
[358140047,1744764633946,-500.0,0.00043835,2]
[358140048,1744764633956,-500.0,0.00043835,2]
[358140049,1744764633970,-500.0,0.00043835,2]
[358140050,1744764633980,-500.0,0.00043835,2]
[358140051,1744764633991,-500.0,0.00043835,2]
[358140052,1744764634002,-500.0,0.00043835,2]
[358140053,1744764634012,-500.0,0.00043835,2]
[358140054,1744764634023,-500.0,0.00043835,2]
[358140055,1744764634033,-500.0,0.00043835,2]
[358140056,1744764634045,-500.0,0.00043835,2]
[358140057,1744764634055,-297.76647296,0.00043835,2]
[358140058,1744764634304,-202.23352704,0.00043835,2]
[358140059,1744764634315,-500.0,0.00043835,2]
[358140060,1744764634324,-500.0,0.00043835,2]
[358140061,1744764634335,-500.0,0.00043835,2]
[358140062,1744764634345,-500.0,0.00043835,2]
[358140063,1744764634359,-500.0,0.00043835,2]
[358140064,1744764634369,-500.0,0.00043835,2]
[358140065,1744764634379,-500.0,0.00043835,2]
[358140066,1744764634390,-500.0,0.00043835,2]
[358140067,1744764634401,-500.0,0.00043835,2]
[358140068,1744764634411,-500.0,0.00043835,2]
[358140069,1744764634421,-500.0,0.00043835,2]
[358140070,1744764634433,-500.0,0.00043835,2]
[358140071,1744764634443,-500.0,0.00043835,2]
[358140072,1744764634452,-500.0,0.00043835,2]
[358140073,1744764634463,-470.731281,0.00043835,2]
[358140074,1744764634472,-1308.12,0.00043835,120]
[358140075,1744764634482,-1308.12,0.00043835,120]
[358140076,1744764634493,-1308.12,0.00043835,120]
[358140077,1744764634503,-1308.12,0.00043835,120]
[358140078,1744764634513,-1308.12,0.00043835,120]
[358140079,1744764634524,-1308.12,0.00043835,120]
[358140080,1744764634533,-1308.12,0.00043835,120]
[358140081,1744764634544,-1308.12,0.00043835,120]
[358140082,1744764634553,-1308.12,0.00043835,120]
[358140083,1744764634563,-1308.12,0.00043835,120]
[358140084,1744764634573,-1308.12,0.00043835,120]
[358140085,1744764634583,-1308.12,0.00043835,120]
[358140086,1744764634594,-1308.12,0.00043835,120]
[358140087,1744764634612,-1308.12,0.00043835,120]
[358140088,1744764634622,-1308.12,0.00043835,120]
[358140089,1744764634632,-1308.12,0.00043835,120]
[358140090,1744764634643,-1308.12,0.00043835,120]
[358140091,1744764634653,-1308.12,0.00043835,120]
[358140092,1744764634663,-1308.12,0.00043835,120]
[358140093,1744764634672,-1308.12,0.00043835,120]
[358140094,1744764634683,-1308.12,0.00043835,120]
[358140095,1744764634695,-1308.12,0.00043835,120]
[358140096,1744764634706,-1308.12,0.00043835,120]
[358140097,1744764634717,-949.89721152,0.00043835,120]
[358140098,1744764634738,-358.29278848,0.00043835,120]
[358140099,1744764634748,-1191.27,0.00043835,120]
[358140100,1744764634758,-450.43720152,0.00043835,120]
[358140132,1744764640607,-170.0,0.00043,90]
[358140133,1744764640618,-2380.31,0.00043615,10]
[358140134,1744764640628,-500.0,0.00043622,31]
[358140135,1744764640638,-500.0,0.00043622,2]
[358140136,1744764640649,-500.0,0.00043622,31]
[358140137,1744764640659,-500.0,0.00043622,2]
[358140138,1744764640669,-500.0,0.00043622,31]
[358140139,1744764640679,-500.0,0.00043622,31]
[358140140,1744764640689,-349.25389881,0.00043622,31]
[358140141,1744764640699,-500.0,0.00043622,2]
[358140142,1744764640709,-500.0,0.00043622,31]
[358140143,1744764640719,-500.0,0.00043622,31]
[358140144,1744764640728,-500.0,0.00043622,2]
[358140145,1744764640738,-500.0,0.00043622,31]
[358140146,1744764640748,-208.93374809,0.00043622,31]
[358140147,1744764640758,-500.0,0.00043622,31]
[358140148,1744764640767,-500.0,0.00043622,2]
[358140149,1744764640778,-178.01687528,0.00043622,31]
[358140150,1744764640789,-500.0,0.00043622,31]
[358140151,1744764640798,-500.0,0.00043622,2]
[358140152,1744764640808,-500.0,0.00043622,2]
[358140153,1744764640818,-500.0,0.00043622,2]
[358140154,1744764640828,-299.10206571,0.00043622,2]
[358140155,1744764640838,-500.0,0.00043622,2]
[358140156,1744764640847,-500.0,0.00043622,2]
[358140157,1744764640859,-500.0,0.00043622,2]
[358140158,1744764640869,-500.0,0.00043622,2]
[358140159,1744764640891,-500.0,0.00043622,2]
[358140160,1744764640901,-454.23313844,0.00043624,31]
[358140161,1744764640912,-500.0,0.00043624,31]
[358140162,1744764640922,-500.0,0.00043624,31]
[358140163,1744764640932,-500.0,0.00043624,31]
[358140164,1744764640942,-500.0,0.00043624,31]
[358140165,1744764640952,-740.83279848,0.00043835,120]
[358140166,1744764640962,-1191.27,0.00043835,120]
[358140167,1744764640973,-1191.27,0.00043835,120]
[358140168,1744764640983,-1191.27,0.00043835,120]
[358140169,1744764640994,-1191.27,0.00043835,120]
[358140170,1744764641005,-1191.27,0.00043835,120]
[358140171,1744764641015,-105.44011462,0.00043835,120]
[358140180,1744764644686,-762.1778837,0.00043835,120]
[358140189,1744764646468,-323.65200168,0.00043835,120]
[358140190,1744764646479,-1191.27,0.00043835,120]
[358140191,1744764646489,-1191.27,0.00043835,120]
[358140192,1744764646500,-1191.27,0.00043835,120]
[358140193,1744764646510,-1191.27,0.00043835,120]
[358140194,1744764646521,-1191.27,0.00043835,120]
[358140195,1744764646531,-1191.27,0.00043835,120]
[358140196,1744764646542,-1191.27,0.00043835,120]
[358140197,1744764646552,-1191.27,0.00043835,120]
[358140198,1744764646563,-1191.27,0.00043835,120]
[358140199,1744764646573,-171.18115508,0.00043835,120]
[358141841,1744765832539,-250.0,0.000269,2]
[358141843,1744765832549,-916.60011555,0.000269,2]
[358141844,1744765832558,-312.5017938,0.00028,10]
[358141846,1744765832568,-958.0,0.00032165,30]
[358141848,1744765832578,-1557.64366771,0.000329,10]
[358141850,1744765832587,-400.0,0.00033382,3]
[358141852,1744765832597,-1557.64366754,0.00033383,11]
[358141854,1744765832606,-1557.64366754,0.00033866,11]
[358141857,1744765832616,-1278.80578961,0.00034348,11]
[358141859,1744765832628,-278.83787793,0.00034348,11]
[358141861,1744765832638,-124.45949996,0.00034831,12]
[358141863,1744765832649,-349.23879933,0.00034831,12]
[358141898,1744765838570,-564.775,0.00032495,30]
[358141899,1744765838580,-1083.94536825,0.00034831,12]
[358141900,1744765838590,-1557.64366754,0.00035314,12]
[358141901,1744765838599,-1557.64366754,0.00035797,12]
[358141902,1744765838609,-560.0,0.00035998,3]
[358141903,1744765838621,-1557.64366754,0.00036279,13]
[358141904,1744765838631,-1557.64366754,0.00036762,13]
[358141905,1744765838641,-1557.64366754,0.00037245,13]
[358141906,1744765838651,-1557.64366754,0.00037728,14]
[358141907,1744765838660,-1557.64366754,0.0003821,14]
[358141908,1744765838669,-1557.64366754,0.00038693,14]
[358141909,1744765838679,-783.0,0.00038819,5]
[358141910,1744765838690,-1557.64366754,0.00039176,15]
[358141911,1744765838700,-1557.64366754,0.00039659,15]
[358141912,1744765838711,-1557.64366754,0.00040141,15]
[358141913,1744765838721,-307.5,0.000405,7]
[358141914,1744765838730,-1557.64366754,0.00040624,16]
[358141915,1744765838740,-1028.60717365,0.00041007,28]
[358141916,1744765838751,-1557.64366754,0.00041107,16]
[358141917,1744765838761,-155.154314,0.000412,31]
[358141918,1744765838770,-500.0,0.00041409,30]
[358141919,1744765838780,-155.154314,0.00041412,30]
[358141920,1744765838790,-500.0,0.00041564,30]
[358141921,1744765838799,-1557.64366754,0.0004159,16]
[358141922,1744765838809,-1028.60717361,0.0004172,28]
[358141923,1744765838820,-1097.0,0.00041862,5]
[358141924,1744765838829,-500.0,0.00042071,31]
[358141925,1744765838838,-500.0,0.00042071,31]
[358141926,1744765838848,-500.0,0.00042071,2]
[358141927,1744765838858,-500.0,0.00042071,2]
[358141928,1744765838868,-500.0,0.00042071,31]
[358141929,1744765838878,-500.0,0.00042071,31]
[358141930,1744765838887,-500.0,0.00042071,2]
[358141931,1744765838897,-500.0,0.00042071,31]
[358141932,1744765838906,-500.0,0.00042071,31]
[358141933,1744765838916,-500.0,0.00042071,2]
[358141934,1744765838926,-623.19040487,0.00042071,2]
[358141935,1744765838935,-500.0,0.00042071,2]
[358141936,1744765838946,-500.0,0.00042071,31]
[358141937,1744765838955,-355.17051547,0.00042071,31]
[358141938,1744765838965,-500.0,0.00042071,2]
[358141939,1744765838975,-500.0,0.00042071,2]
[358141940,1744765838985,-500.0,0.00042071,31]
[358141941,1744765838995,-500.0,0.00042071,2]
[358141942,1744765839004,-500.0,0.00042071,31]
[358141943,1744765839018,-500.0,0.00042071,2]
[358141944,1744765839028,-292.46230496,0.00042071,31]
[358141945,1744765839038,-500.0,0.00042071,2]
[358141946,1744765839049,-1557.64366754,0.00042072,16]
[358141947,1744765839058,-1028.60717361,0.00042434,28]
[358141948,1744765839068,-584.16859248,0.00042435,30]
[358141949,1744765839471,-365.3194418,0.00042435,30]
[358141950,1744765839481,-1557.64366754,0.00042555,17]
[358141951,1744765839491,-401.0,0.00042656,2]
[358141952,1744765839501,-1000.0,0.000428,90]
[358141953,1744765839511,-806.54451738,0.00042822,30]
[358141954,1744765839521,-500.0,0.00043,7]
[358141955,1744765839530,-400.0,0.00043,14]
[358141956,1744765839540,-500.49,0.00043,30]
[358141957,1744765839549,-500.0,0.00043014,2]
[358141958,1744765839559,-22.05620257,0.00043038,17]
[358141974,1744765840765,-170.0,0.00043,90]
[358141975,1744765840775,-88.22,0.00043038,17]
[358141976,1744765840788,-1082.99504255,0.00043038,17]
[358141977,1744765840822,-364.37242242,0.00043038,17]
[358141978,1744765840832,-184.7721227,0.00043091,4]
[358141979,1744765840842,-653.39440949,0.00043147,28]
[358141983,1744765843504,-341.78,0.00032495,30]
[358141984,1744765843562,-322.016287,0.00032495,30]
[358141985,1744765843572,-375.21276412,0.00043147,28]
[358141986,1744765843581,-500.0,0.00043278,30]
[358141987,1744765843591,-500.0,0.00043351,30]
[358141988,1744765843601,-1557.64366754,0.00043521,17]
[358141989,1744765843611,-160.0,0.00043585,2]
[358141990,1744765843621,-150.1,0.00043616,2]
[358141991,1744765843630,-160.0,0.00043634,120]
[358141992,1744765843641,-151.0,0.00043709,2]
[358141993,1744765843651,-500.0,0.00043725,3]
[358141994,1744765843661,-500.0,0.00043725,3]
[358141995,1744765843671,-2560.88662957,0.00043725,3]
[358142005,1744765846692,-9288.48214863,0.00043725,3]
[358142006,1744765846702,-260.56780509,0.00043725,3]
[358145276,1744766896786,-192.25866619,0.00021,5]
[358145281,1744766948401,-156.77835359,0.000189,2]
[358145283,1744766948425,-69.12150803,0.00021,5]
[358146791,1744767003485,-226.458603,0.00021,5]
[358147140,1744767033712,-9319.41217789,0.00021,5]
[358147202,1744767039030,-192.74904489,0.00021,5]
[358147204,1744767039043,-300.0,0.00023898,2]
[358147205,1744767039056,-51.27555648,0.00023898,2]
[358147292,1744767430248,-286.5351,0.000238,2]
[358147301,1744768195026,10000.0,0.00023,30]
[358147302,1744768219986,10000.0,0.00023,30]
[358147333,1744768231852,-313.4649,0.000238,2]
[358147334,1744768231862,-494.21547366,0.00025883,2]
[358147335,1744768231872,-161.40316644,0.000269,2]
[358147336,1744768231883,-312.5017938,0.00027,3]
[358147337,1744768231894,-312.5017938,0.00028,10]
[358147338,1744768231904,-161.40316644,0.00028684,2]
[358147339,1744768231913,-161.40316644,0.00030469,2]
[358147340,1744768231923,-6893.33682944,0.00031039,3]
[358147341,1744768231933,-2008.61550695,0.00031039,2]
[358147342,1744768231958,-22740.01682815,0.00031039,2]
[358147344,1744768231968,-161.40316644,0.00032253,2]
[358147345,1744768231977,-843.2,0.00032353,30]
[358147346,1744768231987,-454.68802022,0.000329,10]
[358147347,1744768231997,-600.0,0.00033,2]
[358147348,1744768232006,-194.67457246,0.00033321,7]
[358147349,1744768232016,-194.67457246,0.00033321,7]
[358147350,1744768232025,-454.68802013,0.00033383,11]
[358147351,1744768232034,-223.6799234,0.00033455,2]
[358147352,1744768232044,-158.26586975,0.00033473,2]
[358147353,1744768232054,-287.23741345,0.00033552,7]
[358147354,1744768232063,-500.0,0.00033552,7]
[358147355,1744768232073,-210.11176355,0.00033552,7]
[358147356,1744768232083,-500.0,0.00033552,2]
[358147357,1744768232093,-500.0,0.00033552,7]
[358147358,1744768232102,-313.0,0.00033553,2]
[358147359,1744768232112,-4014.81211056,0.00033553,2]
[358147407,1744768238250,-421.1261,0.00032683,30]
[358147408,1744768238260,-500.0,0.00033552,2]
[358147409,1744768238269,-67.92310268,0.00033552,7]
[358147410,1744768238280,-432.07689732,0.00033552,7]
[358147411,1744768238290,-500.0,0.00033552,2]
[358147412,1744768238300,-111.38400069,0.00033552,2]
[358147416,1744768240197,-0.0168528,0.00032683,30]
[358147420,1744768242886,-421.1930472,0.00032683,30]
[358147421,1744768242896,-151.29387335,0.00033552,2]
[358147422,1744768242955,-237.32212596,0.00033552,2]
[358147423,1744768243183,-500.0,0.00033552,7]
[358147424,1744768243205,-500.0,0.00033552,2]
[358147425,1744768243215,-500.0,0.00033552,7]
[358147426,1744768243224,-500.0,0.00033552,2]
[358147427,1744768243234,-500.0,0.00033552,2]
[358147428,1744768243243,-500.0,0.00033552,2]
[358147429,1744768243253,-302.02393495,0.00033552,2]
[358147430,1744768243263,-54.75433068,0.00033552,2]
[358147438,1744768245917,-445.24566932,0.00033552,2]
[358147439,1744768245927,-500.0,0.00033552,2]
[358147440,1744768245937,-500.0,0.00033552,2]
[358147441,1744768245946,-500.0,0.00033552,2]
[358147442,1744768245955,-500.0,0.00033552,2]
[358147443,1744768245966,-277.93925643,0.00033552,2]
[358147444,1744768245978,-222.06074357,0.00033552,2]
[358147445,1744768245988,-500.0,0.00033552,2]
[358147446,1744768245997,-500.0,0.00033552,2]
[358147447,1744768246006,-500.0,0.00033552,7]
[358147448,1744768246016,-500.0,0.00033552,2]
[358147449,1744768246025,-228.93925643,0.00033552,2]
[358147450,1744768246040,-271.06074357,0.00033552,2]
[358147451,1744768246050,-500.0,0.00033552,2]
[358147452,1744768246060,-498.83141229,0.00033552,2]
[358147453,1744768246071,-1.16858771,0.00033552,2]
[358147454,1744768246080,-500.0,0.00033552,2]
[358147455,1744768246089,-7520.09187225,0.00033553,2]
[358147456,1744768246101,-6043.46751732,0.00033553,2]
[358147527,1744769432314,-300.0,0.00025,2]
[358147529,1744769432324,-5000.0,0.00025205,2]
[358147531,1744769432334,-512.32244901,0.000269,7]
[358147533,1744769432344,-274.57242627,0.000269,2]
[358147536,1744769432354,-300.0,0.00026999,2]
[358147538,1744769432363,-300.0,0.00026999,2]
[358147539,1744769432373,-5000.0,0.00027,2]
[358147541,1744769432383,-512.322449,0.0002759,7]
[358147543,1744769432392,-195.1335575,0.00027681,2]
[358147544,1744769432402,-312.54626401,0.00028,10]
[358147545,1744769432411,-512.322449,0.00028279,7]
[358147546,1744769432420,-512.322449,0.00028969,8]
[358147547,1744769432429,-420.0,0.00029318,2]
[358147548,1744769432439,-512.322449,0.00029659,8]
[358147549,1744769432449,-8000.0,0.0003,2]
[358147550,1744769432458,-512.322449,0.00030348,9]
[358147551,1744769432468,-704.35588441,0.00030938,2]
[358147552,1744769432478,-10000.0,0.00031,7]
[358147553,1744769432488,-512.322449,0.00031038,9]
[358147554,1744769432498,-512.322449,0.00031728,10]
[358147555,1744769432508,-587.0,0.00031836,3]
[358147556,1744769432518,-1000.0,0.00032273,7]
[358147557,1744769432527,-512.322449,0.00032417,10]
[358147558,1744769432537,-514.10426058,0.00032999,7]
[358147559,1744769432547,-565.14028156,0.00032999,7]
[358147560,1744769432557,-356.67908484,0.00032999,7]
[358147561,1744769432567,-500.0,0.00032999,2]
[358147562,1744769432576,-500.0,0.00032999,7]
[358147563,1744769432586,-500.0,0.00032999,2]
[358147564,1744769432596,-394.3193824,0.00032999,7]
[358147565,1744769432606,-500.0,0.00032999,2]
[358147566,1744769432616,-500.0,0.00032999,2]
[358147567,1744769432626,-500.0,0.00032999,2]
[358147568,1744769432636,-587.79703251,0.00032999,2]
[358147569,1744769432645,-500.0,0.00032999,2]
[358147570,1744769432655,-227.410432,0.00032999,14]
[358147571,1744769432665,-627.298613,0.00032999,2]
[358147572,1744769432674,-627.298613,0.00032999,2]
[358147573,1744769432684,-578.24852107,0.00033,7]
[358147574,1744769432694,-9751.43364424,0.00033,10]
[358147575,1744769432722,-2305.56635576,0.00033,10]
[358147576,1744769432731,-174.7393897,0.00033,5]
[358147577,1744769432743,-500.0,0.00033,5]
[358147578,1744769432753,-500.0,0.00033,2]
[358147579,1744769432762,-506.19588049,0.00033,5]
[358147580,1744769432772,-500.0,0.00033,5]
[358147581,1744769432782,-627.298613,0.00033,2]
[358147582,1744769432791,-627.298613,0.00033,2]
[358147583,1744769432801,-500.0,0.00033,5]
[358147584,1744769432810,-500.0,0.00033,5]
[358147585,1744769432820,-500.0,0.00033,5]
[358147586,1744769432829,-704.35588437,0.00033095,2]
[358147587,1744769432839,-512.322449,0.00033107,11]
[358147588,1744769432848,-513.75,0.0003355,2]
[358147589,1744769432858,-1000.0,0.0003355,2]
[358147590,1744769432868,-1067.82,0.0003355,5]
[358147591,1744769432877,-512.322449,0.00033797,11]
[358147592,1744769432886,-512.322449,0.00034486,11]
[358147593,1744769432896,-823.0,0.0003457,3]
[358147594,1744769432905,-512.322449,0.00035176,12]
[358147595,1744769432915,-704.35588437,0.00035251,2]
[358147596,1744769432924,-663.31589484,0.00035765,2]
[358147597,1744769432934,-512.322449,0.00035866,12]
[358147598,1744769432943,-695.59152532,0.00036345,2]
[358147599,1744769432953,-512.322449,0.00036555,13]
[358147600,1744769432963,-512.322449,0.00037245,13]
[358147601,1744769432975,-704.35588437,0.00037408,2]
[358147602,1744769432986,-663.31589481,0.00037499,2]
[358147603,1744769432996,-1152.0,0.00037539,3]
[358147604,1744769433006,-627.298613,0.00037539,2]
[358147605,1744769433015,-627.298613,0.00037539,2]
[358147606,1744769433025,-512.322449,0.00037934,14]
[358147607,1744769433036,-1004.29187346,0.00038479,5]
[358147608,1744769433045,-1000.0,0.00038479,2]
[358147609,1744769433056,-1000.0,0.00038479,5]
[358147610,1744769433065,-1008.00016682,0.00038479,5]
[358147611,1744769433075,-1000.0,0.00038479,5]
[358147612,1744769433084,-1000.0,0.00038479,5]
[358147613,1744769433094,-620.8509205,0.00038501,120]
[358147614,1744769433103,-512.322449,0.00038624,14]
[358147615,1744769433113,-203.0,0.00039,5]
[358147616,1744769433122,-663.31589481,0.00039232,2]
[358147617,1744769433132,-512.322449,0.00039314,15]
[358147618,1744769433141,-500.0,0.00039435,120]
[358147619,1744769433151,-704.35588437,0.00039565,2]
[358147620,1744769433160,-775.11,0.0003999,3]
[358147621,1744769433170,-387.56,0.0003999,3]
[358147622,1744769433179,-193.78,0.0003999,3]
[358147623,1744769433189,-581.34,0.0003999,3]
[358147624,1744769433199,-1583.71460433,0.0004,60]
[358147625,1744769433210,-3683.66741009,0.0004,120]
[358147626,1744769433222,-500.0,0.0004,120]
[358147627,1744769433232,-164.207869,0.0004,14]
[358147628,1744769433243,-164.207869,0.0004,14]
[358147629,1744769433252,-2766.46853392,0.0004,30]
[358147630,1744769433264,-453.06849313,0.0004,100]
[358147631,1744769433274,-627.298613,0.0004,2]
[358147632,1744769433283,-627.298613,0.0004,2]
[358147633,1744769433294,-512.322449,0.00040003,15]
[358147634,1744769433303,-500.0,0.00040123,120]
[358147635,1744769433314,-164.207869,0.00040141,14]
[358147636,1744769433324,-164.207869,0.00040141,14]
[358147637,1744769433334,-217.46,0.000406,7]
[358147638,1744769433344,-164.79339636,0.0004063,31]
[358147639,1744769433354,-500.0,0.0004063,31]
[358147640,1744769433364,-491.44071202,0.0004063,31]
[358147641,1744769433375,-201.4338822,0.0004063,31]
[358147642,1744769433385,-48140.76213644,0.00040631,2]
[358147643,1744769433443,-335.06687033,0.0004063,31]
[358147644,1744769433471,-164.93312967,0.0004063,31]
[358147645,1744769433481,-500.0,0.0004063,31]
[358147646,1744769433493,-500.0,0.0004063,31]
[358147647,1744769433503,-500.0,0.0004063,31]
[358147648,1744769433514,-8919.4801474,0.00040631,2]
[358147649,1744769433523,-3446.66841472,0.00040631,3]
[358147650,1744769433533,-160.0,0.00040631,2]
[358147651,1744769433543,-512.322449,0.00040693,16]
[358147652,1744769433553,-1613.0,0.00040763,5]
[358147653,1744769433563,-663.31589481,0.00040966,2]
[358147654,1744769433573,-500.0,0.00041,120]
[358147655,1744769433582,-627.298613,0.00041,2]
[358147656,1744769433592,-627.298613,0.00041,2]
[358147657,1744769433602,-690.44321381,0.00041142,30]
[358147658,1744769433612,-500.0,0.00041235,120]
[358147659,1744769433622,-500.0,0.00041255,30]
[358147660,1744769433633,-1550.22,0.0004136,3]
[358147661,1744769433644,-775.12,0.0004136,3]
[358147662,1744769433654,-387.56,0.0004136,3]
[358147663,1744769433665,-164.207869,0.0004136,120]
[358147664,1744769433675,-164.207869,0.0004136,120]
[358147665,1744769433685,-677.75163,0.0004136,120]
[358147666,1744769433696,-160.0,0.00041363,2]
[358147667,1744769433705,-512.322449,0.00041383,16]
[358147668,1744769433716,-627.298613,0.00041586,2]
[358147669,1744769433726,-627.298613,0.00041586,2]
[358147670,1744769433736,-500.0,0.00041673,10]
[358147671,1744769433746,-2765.1007953,0.00041673,3]
[358147672,1744769433755,-732.05152496,0.00041673,3]
[358147673,1744769433765,-500.0,0.00041686,31]
[358147674,1744769433775,-151.7241139,0.00041686,31]
[358147675,1744769433785,-677.75163,0.00041686,120]
[358147676,1744769433795,-500.0,0.00041686,31]
[358147677,1744769433804,-500.0,0.00041686,31]
[358147678,1744769434082,-704.35588437,0.00041722,28]
[358147679,1744769434093,-500.0,0.00041729,30]
[358147680,1744769434103,-150.123,0.00041738,2]
[358147681,1744769434112,-508.47461601,0.00041882,30]
[358147682,1744769434122,-500.0,0.0004196,31]
[358147683,1744769434131,-500.0,0.0004196,31]
[358147684,1744769434141,-500.0,0.0004196,31]
[358147685,1744769434151,-151.0,0.0004196,2]
[358147686,1744769434161,-151.0,0.0004196,2]